fUST/lending_fUST_20251012
["ID","MTS","AMOUNT","RATE_DAILY","PERIOD"]
[390970482,1760241046582,-3092.37976649,0.00025423,2]
[390970483,1760241046592,-999.0,0.00025438,2]
[390970484,1760241046601,-1500.0,0.00025468,2]
[390970485,1760241046610,-501.37887223,0.00025468,2]
[390970486,1760241046619,-1500.0,0.00025468,2]
[390970487,1760241046628,-500.0,0.00025477,7]
[390970488,1760241046637,-592.32,0.00025479,8]
[390970489,1760241046646,-903.1655574,0.00025498,2]
[390970490,1760241046655,-999.0,0.00025506,2]
[390970491,1760241046664,-999.0,0.00025507,2]
[390970492,1760241046673,-999.0,0.0002554,2]
[390970493,1760241046682,-600.0,0.00025616,2]
[390970494,1760241046691,-189.54781984,0.000257,2]
[390970495,1760241046701,-208.04726833,0.000257,2]
[390970496,1760241046710,-537.34091524,0.000257,2]
[390970497,1760241046719,-235.69795769,0.000257,2]
[390970498,1760241046728,-503.58643299,0.000257,2]
[390970499,1760241046737,-3983.77607872,0.000257,2]
[390970500,1760241046747,-1418.8187184,0.00025715,2]
[390970501,1760241046756,-592.32,0.00025753,9]
[390970502,1760241046766,-350.0,0.00025753,2]
[390970503,1760241046776,-393.72884361,0.0002577,2]
[390970504,1760241046786,-1574.91537442,0.0002577,2]
[390970505,1760241046795,-3540.01603286,0.0002577,2]
[390970506,1760241046803,-706.01385771,0.0002577,2]
[390970507,1760241046814,-2824.05543083,0.0002577,2]
[390970508,1760241046824,-526.02760406,0.00025802,2]
[390970509,1760241046833,-2104.11041623,0.00025802,2]
[390970510,1760241046843,-4734.24843653,0.00025802,2]
[390970511,1760241046852,-189.54781984,0.000259,2]
[390970512,1760241046861,-208.04726833,0.000259,2]
[390970513,1760241046871,-537.34091524,0.000259,2]
[390970514,1760241046879,-235.69795769,0.000259,2]
[390970515,1760241046889,-503.58643299,0.000259,2]
[390970516,1760241046898,-3983.77607872,0.000259,2]
[390970517,1760241046907,-1418.8187184,0.00025961,2]
[390970518,1760241046916,-3843.8163769,0.00025965,2]
[390970519,1760241046925,-608.52845163,0.00026016,2]
[390970520,1760241046935,-807.52882677,0.00026016,2]
[390970521,1760241046944,-2000.0,0.00026016,2]
[390970522,1760241046953,-1009.95864256,0.00026016,2]
[390970523,1760241046962,-1004.0,0.00026017,7]
[390970524,1760241046971,-6347.77059464,0.00026025,2]
[390970525,1760241046980,-592.32,0.00026027,10]
[390970526,1760241046990,-13279.83,0.00026027,2]
[390970527,1760241046999,-8416.44166494,0.00026029,2]
[390970528,1760241047008,-150.67888213,0.00026164,2]
[390970529,1760241047018,-1418.8187184,0.00026165,2]
[390970530,1760241047027,-3983.77607872,0.000262,2]
[390970531,1760241047036,-1024.2866163,0.00026205,2]
[390970532,1760241047045,-999.0,0.00026262,2]
[390970533,1760241047055,-504.78424507,0.00026266,7]
[390970534,1760241047063,-279.96,0.0002629,2]
[390970535,1760241047072,-592.32,0.00026301,11]
[390970536,1760241047081,-450.0,0.00026301,2]
[390970537,1760241047090,-1418.8187184,0.00026379,2]
[390970538,1760241047099,-3983.77607872,0.000265,2]
[390970539,1760241047109,-2500.0,0.00026564,2]
[390970540,1760241047119,-592.32,0.00026575,12]
[390970541,1760241047128,-166.0,0.000266,3]
[390970542,1760241047137,-162.0,0.000266,3]
[390970543,1760241047150,-162.0,0.000266,3]
[390970544,1760241047159,-162.0,0.000266,3]
[390970545,1760241047168,-151.63772695,0.000266,3]
[390970546,1760241047177,-738023.24553315,0.000266,2]
[390970547,1760241047395,-1253.73436772,0.000266,2]
[390970548,1760241047407,-2184.57734628,0.000266,2]
[390970549,1760241047465,-20601.69365,0.000266,2]
[390970550,1760241047476,-129177.20062159,0.000266,2]
[390970551,1760241047519,-575.45730371,0.00021917,2]
[390970552,1760241047529,-22980.00556535,0.000266,2]
[390970553,1760241047540,-39422.21728916,0.000266,2]
[390970554,1760241100546,7124.53664446,0.00021717,2]
[390970555,1760241100568,10000.01,0.00021717,2]
[390970556,1760241100588,10000.01,0.00021717,2]
[390970557,1760241100610,10000.01,0.00021717,2]
[390970558,1760241100631,10000.01,0.00021717,2]
[390970559,1760241100653,10000.01,0.00021717,2]
[390970560,1760241100674,10000.01,0.00021717,2]
[390970561,1760241100695,10000.01,0.00021717,2]
[390970562,1760241100717,10000.01,0.00021717,2]
[390970563,1760241100739,10000.01,0.00021717,2]
[390970564,1760241107997,-689.24,0.00021717,2]
[390970565,1760241109722,-10000.01,0.00021717,2]
[390970566,1760241109826,-10000.01,0.00021717,2]
[390970567,1760241109935,-10000.01,0.00021717,2]
[390970568,1760241110057,-10000.01,0.00021717,2]
[390970569,1760241110199,-10000.01,0.00021717,2]
[390970570,1760241110298,-10000.01,0.00021717,2]
[390970571,1760241110446,-10000.01,0.00021717,2]
[390970572,1760241110560,-10000.01,0.00021717,2]
[390970573,1760241110654,-10000.01,0.00021717,2]
[390970574,1760241110760,-10000.01,0.00021717,2]
[390970575,1760241114565,150.0,0.00019048,2]
[390970576,1760241115195,150.0,0.00019955,2]
[390970577,1760241115621,150.0,0.00020862,2]
[390970578,1760241117719,-10000.01,0.00021717,2]
[390970579,1760241117915,-10000.01,0.00021717,2]
[390970580,1760241118027,-10000.01,0.00021717,2]
[390970581,1760241118152,-10000.01,0.00021717,2]
[390970582,1760241118304,-10000.01,0.00021717,2]
[390970583,1760241118429,-10000.01,0.00021717,2]
[390970584,1760241118529,-10000.01,0.00021717,2]
[390970585,1760241118741,-10000.01,0.00021717,2]
[390970586,1760241118791,-10000.01,0.00021717,2]
[390970587,1760241118940,-10000.01,0.00021717,2]
[390970588,1760241131762,-10000.01,0.00021717,2]
[390970589,1760241131866,-10000.01,0.00021717,2]
[390970590,1760241131969,-10000.01,0.00021717,2]
[390970591,1760241132091,-10000.01,0.00021717,2]
[390970592,1760241132229,-10000.01,0.00021717,2]
[390970593,1760241132375,-10000.01,0.00021717,2]
[390970594,1760241132499,-10000.01,0.00021717,2]
[390970595,1760241133872,-2185.86335554,0.00021717,2]
[390970596,1760241148558,5000.0,0.00021717,2]
[390970597,1760241180787,150.0,0.00019044,2]
[390970598,1760241181175,150.0,0.00019951,2]
[390970599,1760241181577,150.0,0.00020858,2]
[390970603,1760241248866,150.0,0.00019098,2]
[390970604,1760241249275,28.28328892,0.00020008,2]
[390970605,1760241249305,121.71671108,0.00020008,2]
[390970606,1760241249735,150.0,0.00020917,2]
[390970607,1760241251278,-150.0,0.00021769,2]
[390970608,1760241251311,-235.06341924,0.00021769,2]
[390970610,1760241314034,150.0,0.00019067,2]
[390970611,1760241431694,151.0,0.00017,2]
[390970617,1760241578116,2909.7961756,0.00021734,2]
[390970619,1760241707975,249.360366,0.00021662,2]
[390970623,1760241839636,1000.0,0.00021732,2]
[390970625,1760241956108,150.0,0.00019245,2]
[390970626,1760241956521,150.0,0.00020161,2]
[390970627,1760242029901,2788.0,0.00025,120]
[390970632,1760242085587,150.0,0.00019247,2]
[390970633,1760242086032,150.0,0.00020164,2]
[390970634,1760242094504,215.0,0.00025,120]
[390970635,1760242107023,200.0,0.00025,120]
[390970680,1760242237946,-1200.0,0.00021915,2]
[390970681,1760242237955,-234.64455753,0.00021916,2]
[390970682,1760242237965,-1200.0,0.00021916,2]
[390970683,1760242237974,-300.0,0.00021916,2]
[390970684,1760242237984,-50000.0,0.00021917,2]
[390970685,1760242237993,-500.0,0.00021917,2]
[390970686,1760242238002,-500.0,0.00021917,2]
[390970687,1760242238011,-459.96791496,0.00021917,2]
[390970688,1760242238021,-503.06491332,0.00021917,2]
[390970689,1760242238031,-501.38845133,0.00021917,2]
[390970690,1760242238041,-463.00175422,0.00021917,2]
[390970691,1760242238050,-500.0,0.00021917,2]
[390970693,1760242238061,-500.0,0.00022353,2]
[390970694,1760242238070,-500.0,0.00022353,2]
[390970695,1760242238080,-435.77,0.00022353,2]
[390970696,1760242238090,-300.0,0.00022354,20]
[390970697,1760242238099,-300.0,0.00022354,20]
[390970698,1760242238108,-300.0,0.00022354,20]
[390970699,1760242238118,-300.0,0.00022354,20]
[390970700,1760242238127,-300.0,0.00022354,20]
[390970701,1760242238137,-300.0,0.00022354,20]
[390970702,1760242238146,-300.0,0.00022354,20]
[390970703,1760242238156,-300.0,0.00022354,20]
[390970704,1760242238165,-300.0,0.00022354,20]
[390970705,1760242238175,-300.0,0.00022354,20]
[390970706,1760242238184,-300.0,0.00022354,20]
[390970707,1760242238194,-300.0,0.00022354,20]
[390970708,1760242238204,-300.0,0.00022354,20]
[390970709,1760242238214,-300.0,0.00022354,20]
[390970710,1760242238223,-300.0,0.00022354,20]
[390970711,1760242238233,-363.65268336,0.00022373,2]
[390970712,1760242238243,-269.84124116,0.00022516,2]
[390970713,1760242238252,-500.0,0.00022837,2]
[390970714,1760242238262,-305.03792479,0.00023116,2]
[390970715,1760242238271,-500.0,0.00023142,2]
[390970716,1760242238280,-29535.7065703,0.00023245,2]
[390970717,1760242238290,-340.23460842,0.00023716,2]
[390970718,1760242238300,-2944.67530863,0.00023917,5]
[390970719,1760242238309,-414.93929834,0.00024009,2]
[390970720,1760242238319,-375.43129205,0.00024316,2]
[390970721,1760242238328,-198.70407556,0.00024506,2]
[390970722,1760242238338,-666.0,0.00024507,2]
[390970723,1760242238347,-504.78424507,0.00024676,2]
[390970724,1760242238357,-1659.75719335,0.00024712,2]
[390970725,1760242238367,-333.275,0.00024783,8]
[390970726,1760242238376,-5947.21716124,0.000248,2]
[390970727,1760242238386,-160.0,0.00024867,2]
[390970728,1760242238395,-3092.37976649,0.00024885,2]
[390970729,1760242238406,-11894.4343225,0.0002489,2]
[390970730,1760242238416,-1567.9519887,0.000249,2]
[390970731,1760242238430,-755.13452956,0.000249,2]
[390970732,1760242238441,-806.01137287,0.000249,2]
[390970733,1760242238452,-177.73528589,0.000249,2]
[390970734,1760242238461,-1930.84917189,0.000249,2]
[390970735,1760242238471,-1111.76823906,0.000249,2]
[390970736,1760242238481,-4151.66291556,0.000249,2]
[390970737,1760242238490,-284.32172976,0.000249,2]
[390970738,1760242238500,-88915.7280383,0.000249,2]
[390970739,1760242238509,-410.62797568,0.00024916,2]
[390970740,1760242238521,-1418.8187184,0.00025014,2]
[390970741,1760242238530,-249.360366,0.00025087,2]
[390970742,1760242238541,-502.44478742,0.00025099,8]
[390970743,1760242238550,-501.56022835,0.00025099,8]
[390970744,1760242238560,-500.0,0.00025099,8]
[390970745,1760242238569,-500.0,0.00025099,8]
[390970746,1760242238579,-806.01137287,0.000251,2]
[390970747,1760242238588,-755.13452956,0.000251,2]
[390970748,1760242238598,-177.73528589,0.000251,2]
[390970749,1760242238607,-1930.84917189,0.000251,2]
[390970750,1760242238616,-1111.76823906,0.000251,2]
[390970751,1760242238626,-4151.66291556,0.000251,2]
[390970752,1760242238635,-284.32172976,0.000251,2]
[390970753,1760242238644,-501.75,0.00025205,7]
[390970754,1760242238654,-2257.0,0.00025291,7]
[390970755,1760242238663,-2257.0,0.0002532,2]
[390970756,1760242238672,-1418.8187184,0.00025388,2]
[390970757,1760242238682,-600.0,0.00025397,20]
[390970758,1760242238691,-806.01137287,0.000254,2]
[390970759,1760242238701,-755.13452956,0.000254,2]
[390970760,1760242238710,-177.73528589,0.000254,2]
[390970761,1760242238721,-1930.84917189,0.000254,2]
[390970762,1760242238737,-1111.76823906,0.000254,2]
[390970763,1760242238746,-4151.66291556,0.000254,2]
[390970764,1760242238755,-284.32172976,0.000254,2]
[390970765,1760242238774,-218.46037366,0.00025409,2]
[390970766,1760242238785,-3734.45368504,0.00025415,2]
[390970767,1760242238795,-506.85560792,0.00025473,2]
[390970768,1760242238805,-500.0,0.00025473,2]
[390970769,1760242238815,-501.75,0.00025479,8]
[390970770,1760242238824,-11894.4343225,0.00025489,2]
[390970771,1760242238834,-88915.7280383,0.00025499,2]
[390970772,1760242238843,-5947.21716124,0.00025509,2]
[390970773,1760242238853,-160.0,0.0002551,2]
[390970774,1760242238863,-445.8246593,0.00025516,2]
[390970775,1760242238872,-22436.1143797,0.00025519,2]
[390970776,1760242238881,-256.071654,0.00025519,2]
[390970777,1760242238891,-806.01137287,0.000256,2]
[390970778,1760242238901,-755.13452956,0.000256,2]
[390970779,1760242238910,-1930.84917189,0.000256,2]
[390970780,1760242238920,-1111.76823906,0.000256,2]
[390970781,1760242238930,-4151.66291556,0.000256,2]
[390970782,1760242238941,-284.32172976,0.000256,2]
[390970783,1760242238951,-1418.8187184,0.00025693,2]
[390970784,1760242238961,-501.75,0.00025753,9]
[390970785,1760242238970,-1482.21895904,0.0002579,2]
[390970786,1760242238980,-20300.25595811,0.000258,3]
[390970787,1760242238989,-1567.9519887,0.000258,3]
[390970788,1760242238999,-1782.07353957,0.00025801,2]
[390970789,1760242239009,-11894.4343225,0.0002587,2]
[390970790,1760242239018,-150.0,0.00025873,2]
[390970791,1760242239028,-88915.7280383,0.0002588,2]
[390970792,1760242239038,-23788.868645,0.0002588,2]
[390970793,1760242239048,-177831.456077,0.0002589,2]
[390970794,1760242239058,-806.01137287,0.000259,2]
[390970795,1760242239260,-755.13452956,0.000259,2]
[390970796,1760242239270,-1930.84917189,0.000259,2]
[390970797,1760242239280,-1111.76823906,0.000259,2]
[390970798,1760242239291,-4151.66291556,0.000259,2]
[390970799,1760242239303,-284.32172976,0.000259,2]
[390970800,1760242239313,-166103.16313702,0.000259,2]
[390970994,1760242392616,-300.0,0.00022354,20]
[390970995,1760242392638,-300.0,0.00022354,20]
[390970996,1760242392660,-300.0,0.00022354,20]
[390970997,1760242392682,-100.0,0.00022354,20]
[390970998,1760242587962,875.561632,0.00013699,2]
[390970999,1760242588180,875.561632,0.00020187,2]
[390971010,1760243265888,8248.886736,0.00018,2]
[390971011,1760243265909,10000.01,0.00018,2]
[390971012,1760243265933,9692.5631134,0.00018,2]
[390971013,1760243306376,150.0,0.00019069,2]
[390971014,1760243306774,150.0,0.00019977,2]
[390971015,1760243307190,7.4468866,0.00020885,2]
[390971016,1760243307214,142.5531134,0.00020885,2]
[390971018,1760243310041,-150.0,0.00021793,2]
[390971135,1760243432336,-231.11257723,0.00021916,2]
[390971137,1760243432345,-184.64909378,0.00021916,2]
[390971144,1760243438070,-395.35090622,0.00021916,2]
[390971145,1760243438080,-300.0,0.00021916,2]
[390971146,1760243438090,-500.0,0.00021917,2]
[390971147,1760243438102,-352.66,0.00021917,2]
[390971148,1760243438112,-500.0,0.00021917,2]
[390971149,1760243438122,-425.42,0.00021917,2]
[390971150,1760243438131,-506.22985895,0.00021917,2]
[390971151,1760243438141,-337.40792614,0.00021917,2]
[390971152,1760243438151,-500.0,0.0002235,2]
[390971153,1760243438161,-500.0,0.0002235,2]
[390971154,1760243438170,-500.0,0.0002235,2]
[390971155,1760243438180,-500.0,0.0002235,2]
[390971156,1760243438189,-500.0,0.0002235,2]
[390971157,1760243438199,-500.0,0.0002235,2]
[390971158,1760243438209,-500.0,0.0002235,2]
[390971159,1760243438219,-500.0,0.0002235,2]
[390971160,1760243438228,-500.0,0.0002235,2]
[390971161,1760243438238,-383.80532523,0.0002235,2]
[390971162,1760243438248,-500.0,0.0002235,2]
[390971163,1760243438257,-500.0,0.0002235,2]
[390971164,1760243438267,-500.0,0.0002235,2]
[390971165,1760243438276,-500.0,0.0002235,2]
[390971166,1760243438285,-500.0,0.0002235,2]
[390971167,1760243438295,-500.0,0.0002235,2]
[390971168,1760243438305,-500.0,0.0002235,2]
[390971169,1760243438315,-598.40390089,0.0002235,2]
[390971170,1760243438324,-500.0,0.0002235,2]
[390971171,1760243438334,-500.0,0.0002235,2]
[390971172,1760243438344,-500.0,0.0002235,2]
[390971173,1760243438353,-500.0,0.0002235,2]
[390971174,1760243438363,-500.0,0.0002235,2]
[390971175,1760243438373,-500.0,0.0002235,2]
[390971176,1760243438383,-500.0,0.0002235,2]
[390971177,1760243438392,-500.0,0.0002235,2]
[390971178,1760243438401,-500.0,0.0002235,2]
[390971179,1760243438411,-500.0,0.0002235,2]
[390971180,1760243438421,-500.0,0.0002235,2]
[390971181,1760243438430,-500.0,0.0002235,2]
[390971182,1760243438440,-500.0,0.0002235,2]
[390971183,1760243438450,-500.0,0.0002235,2]
[390971184,1760243438459,-500.0,0.0002235,2]
[390971185,1760243438469,-500.0,0.0002235,2]
[390971186,1760243438480,-500.0,0.0002235,2]
[390971187,1760243438490,-577.36505747,0.0002235,2]
[390971188,1760243438499,-500.0,0.0002235,2]
[390971189,1760243438508,-500.0,0.0002235,2]
[390971190,1760243438518,-500.0,0.0002235,2]
[390971191,1760243438527,-500.0,0.0002235,2]
[390971192,1760243438536,-500.0,0.0002235,2]
[390971193,1760243438546,-34513.86670909,0.00022351,2]
[390971194,1760243438555,-309.30303245,0.00022353,2]
[390971195,1760243438564,-300.0,0.00022354,20]
[390971196,1760243438574,-300.0,0.00022354,20]
[390971197,1760243438583,-300.0,0.00022354,20]
[390971198,1760243438593,-300.0,0.00022354,20]
[390971199,1760243438603,-300.0,0.00022354,20]
[390971200,1760243438612,-300.0,0.00022354,20]
[390971201,1760243438621,-300.0,0.00022354,20]
[390971202,1760243438631,-300.0,0.00022354,20]
[390971203,1760243438640,-300.0,0.00022354,20]
[390971204,1760243438649,-300.0,0.00022354,20]
[390971205,1760243438659,-300.0,0.00022354,20]
[390971206,1760243438668,-300.0,0.00022354,20]
[390971207,1760243438677,-300.0,0.00022354,20]
[390971208,1760243438686,-300.0,0.00022354,20]
[390971209,1760243438696,-300.0,0.00022354,20]
[390971210,1760243438705,-3736.45375174,0.00022515,5]
[390971211,1760243438714,-265.77946382,0.00022516,2]
[390971212,1760243438723,-600.0,0.00022799,20]
[390971213,1760243438732,-300.4463504,0.00023116,2]
[390971214,1760243438741,-335.11323699,0.00023716,2]
[390971215,1760243438750,-420.0,0.00023817,2]
[390971216,1760243438759,-1359.02576479,0.0002395,2]
[390971217,1760243438768,-1054.16,0.00024132,10]
[390971218,1760243438782,-264265.32444901,0.00024142,2]
[390971219,1760243438791,-218.46037366,0.00024157,2]
[390971220,1760243438801,-1359.02576479,0.00024217,2]
[390971221,1760243438817,-369.78012357,0.00024316,2]
[390971222,1760243438835,-1359.02576479,0.00024431,2]
[390971223,1760243438845,-1359.02576479,0.00024659,2]
[390971224,1760243438858,-1472.99197561,0.000247,2]
[390971225,1760243438867,-266.62,0.00024787,8]
[390971226,1760243438876,-1741.36134469,0.000248,4]
[390971227,1760243438885,-1567.9519887,0.00024885,2]
[390971228,1760243438895,-282.14533397,0.00024885,2]
[390971229,1760243438904,-625.22279421,0.000249,2]
[390971230,1760243438913,-177.66495206,0.000249,2]
[390971231,1760243438922,-4881.26339657,0.000249,2]
[390971232,1760243438931,-317.46472058,0.000249,2]
[390971233,1760243438942,-208.50260182,0.000249,2]
[390971234,1760243438958,-591.07500677,0.000249,2]
[390971235,1760243438968,-621.86779207,0.000249,2]
[390971236,1760243438978,-160.17643406,0.000249,2]
[390971237,1760243438987,-404.44701016,0.00024916,2]
[390971238,1760243439000,-574.2,0.00024947,8]
[390971239,1760243439010,-574.2,0.00024947,8]
[390971240,1760243439020,-574.2,0.00024947,8]
[390971241,1760243439032,-574.2,0.00024947,8]
[390971242,1760243439043,-574.2,0.00024947,8]
[390971243,1760243439056,-574.2,0.00024947,8]
[390971244,1760243439071,-574.2,0.00024947,8]
[390971245,1760243439081,-574.2,0.00024947,8]
[390971246,1760243439091,-574.2,0.00024947,8]
[390971247,1760243439103,-574.2,0.00024947,8]
[390971248,1760243439113,-574.2,0.00024947,8]
[390971249,1760243439122,-574.2,0.00024947,8]
[390971250,1760243439132,-574.2,0.00024947,8]
[390971251,1760243439141,-574.2,0.00024947,8]
[390971252,1760243439151,-574.2,0.00024947,8]
[390971253,1760243439160,-574.2,0.00024947,8]
[390971254,1760243439170,-574.2,0.00024947,8]
[390971255,1760243439179,-574.2,0.00024947,8]
[390971256,1760243439188,-574.2,0.00024947,8]
[390971257,1760243439198,-574.2,0.00024947,8]
[390971258,1760243439207,-574.2,0.00024947,8]
[390971259,1760243439216,-574.2,0.00024947,8]
[390971260,1760243439225,-574.2,0.00024947,8]
[390971261,1760243439234,-574.23163864,0.00024947,8]
[390971262,1760243439243,-160.0,0.0002498,2]
[390971263,1760243439252,-720.0,0.00025079,20]
[390971264,1760243439262,-1359.02576479,0.00025093,2]
[390971265,1760243439271,-417.15472785,0.00025098,2]
[390971266,1760243439280,-298.14195131,0.00025098,2]
[390971267,1760243439290,-625.22279421,0.000251,2]
[390971268,1760243439300,-4881.26339657,0.000251,2]
[390971269,1760243439310,-317.46472058,0.000251,2]
[390971270,1760243439319,-208.50260182,0.000251,2]
[390971271,1760243439328,-591.07500677,0.000251,2]
[390971272,1760243439338,-621.86779207,0.000251,2]
[390971273,1760243439347,-478.8,0.00025205,7]
[390971274,1760243439357,-1305.0,0.00025345,2]
[390971275,1760243439366,-156.61599044,0.00025359,7]
[390971276,1760243439375,-1305.0,0.00025374,2]
[390971277,1760243439385,-1876.45362636,0.0002539,2]
[390971278,1760243439394,-84469.9416364,0.0002539,2]
[390971279,1760243439404,-2081.52600644,0.0002539,2]
[390971280,1760243439413,-625.22279421,0.000254,2]
[390971281,1760243439422,-4881.26339657,0.000254,2]
[390971282,1760243439431,-317.46472058,0.000254,2]
[390971283,1760243439442,-208.50260182,0.000254,2]
[390971284,1760243439451,-591.07500677,0.000254,2]
[390971285,1760243439461,-621.86779207,0.000254,2]
[390971286,1760243439471,-20300.25595811,0.000254,3]
[390971287,1760243439480,-1567.9519887,0.000254,3]
[390971288,1760243439490,-1305.0,0.00025401,7]
[390971289,1760243439499,-1359.02576479,0.00025418,2]
[390971290,1760243439508,-500.0,0.00025473,2]
[390971291,1760243439518,-500.0,0.00025473,2]
[390971292,1760243439527,-506.85560792,0.00025473,2]
[390971293,1760243439536,-500.0,0.00025473,2]
[390971294,1760243439545,-478.8,0.00025479,8]
[390971295,1760243439555,-84469.9416364,0.0002548,2]
[390971296,1760243439564,-2081.52600644,0.0002548,2]
[390971297,1760243439573,-187029.85394433,0.0002549,2]
[390971298,1760243439587,-3555.02714166,0.0002549,2]
[390971300,1760243439999,-900.0,0.0002549,2]
[390971470,1760243446268,-878.46,0.00024132,10]
[390971471,1760243446278,-412.78089233,0.00025247,14]
[390971472,1760243446287,-1739.25910767,0.0002549,2]
[390971474,1760243501937,150.0,0.0001901,2]
[390971475,1760243502380,150.0,0.00019915,2]
[390971476,1760243502811,150.0,0.0002082,2]
[390971477,1760243503748,150.0,0.00021725,2]
[390971479,1760243575777,150.0,0.00019,2]
[390971480,1760243576193,150.0,0.00019905,2]
[390971481,1760243577001,150.0,0.0002081,2]
[390971482,1760243577410,150.0,0.00021714,2]
[390971483,1760243647607,150.0,0.00019193,2]
[390971484,1760243648233,150.0,0.00020107,2]
[390971485,1760243648702,150.0,0.00021021,2]
[390971486,1760243716366,150.0,0.00019234,2]
[390971487,1760243716801,150.0,0.0002015,2]
[390971488,1760243717250,150.0,0.00021066,2]
[390971489,1760243782056,150.0,0.00019192,2]
[390971492,1760244569626,1000.0,0.00021666,2]
[390971644,1760244638290,-300.0,0.00021934,2]
[390971645,1760244638300,-1200.0,0.00021934,2]
[390971646,1760244638309,-4377.0,0.00021935,2]
[390971647,1760244638318,-218.20316824,0.00021935,2]
[390971648,1760244638327,-222.46611655,0.0002235,2]
[390971649,1760244638336,-928.64,0.0002235,2]
[390971650,1760244638346,-500.0,0.0002235,2]
[390971651,1760244638359,-500.0,0.0002235,2]
[390971652,1760244638369,-500.0,0.00022351,2]
[390971653,1760244638378,-500.0,0.00022351,2]
[390971654,1760244638387,-500.0,0.00022351,2]
[390971655,1760244638396,-500.0,0.00022351,2]
[390971656,1760244638405,-500.0,0.00022351,2]
[390971658,1760244638415,-500.0,0.00022351,2]
[390971660,1760244638424,-500.0,0.00022351,2]
[390971661,1760244638433,-500.0,0.00022351,2]
[390971662,1760244638442,-500.0,0.00022351,2]
[390971663,1760244638453,-500.0,0.00022351,2]
[390971664,1760244638462,-500.0,0.00022351,2]
[390971665,1760244638472,-500.0,0.00022351,2]
[390971666,1760244638482,-500.0,0.00022351,2]
[390971667,1760244638491,-500.0,0.00022351,2]
[390971668,1760244638659,-507.90474898,0.00022351,2]
[390971669,1760244638670,-500.0,0.00022351,2]
[390971670,1760244638692,-500.0,0.00022351,2]
[390971671,1760244638703,-500.0,0.00022351,2]
[390971672,1760244638713,-500.0,0.00022351,2]
[390971673,1760244638722,-500.0,0.00022351,2]
[390971674,1760244638731,-500.0,0.00022351,2]
[390971675,1760244638741,-500.0,0.00022351,2]
[390971676,1760244638750,-500.0,0.00022351,2]
[390971677,1760244638759,-500.0,0.00022351,2]
[390971678,1760244638769,-500.0,0.00022351,2]
[390971679,1760244638778,-500.0,0.00022351,2]
[390971680,1760244638788,-500.0,0.00022351,2]
[390971681,1760244638798,-500.0,0.00022351,2]
[390971682,1760244638807,-500.0,0.00022351,2]
[390971683,1760244638817,-500.0,0.00022351,2]
[390971684,1760244638827,-250.93364348,0.00022535,2]
[390971685,1760244638836,-500.0,0.00022757,2]
[390971686,1760244638846,-500.0,0.00022767,2]
[390971687,1760244638856,-500.0,0.00022793,2]
[390971688,1760244638866,-510.93376677,0.00022793,2]
[390971689,1760244638875,-500.0,0.00022793,2]
[390971690,1760244638885,-500.0,0.00022793,2]
[390971691,1760244638894,-500.0,0.00022793,2]
[390971692,1760244638903,-500.0,0.00022793,2]
[390971693,1760244638912,-500.0,0.00022793,2]
[390971694,1760244638921,-500.0,0.00022793,2]
[390971695,1760244638930,-500.0,0.00022793,2]
[390971696,1760244638940,-500.0,0.00022793,2]
[390971697,1760244638949,-500.0,0.00022793,2]
[390971698,1760244638958,-500.0,0.00022793,2]